[Event "Titled Tuesday Blitz August 22 Early 2023"]
[White "Hercegovac, Neven"]
[Black "NovozhilovSemen"]
[WhiteFideId "2839135"]
[WhiteElo "2302"]
[BlackElo "2497"]
[Result "0-1"]
[Round "2"]
[TimeControl "180+1"]
[Date "2023.08.22"]
[WhiteClock "0:01:07"]
[BlackClock "0:01:31"]
[Board "200"]

1. d4 {[%clk 0:03:00]}  Nf6 {[%clk 0:02:59]} 2. Bf4 {[%clk 0:02:56]}  e6 {[%clk 0:02:45]} 3. e3 {[%clk 0:02:53]}  c5 {[%clk 0:02:45]} 4. Nf3 {[%clk 0:02:50]}  cxd4 {[%clk 0:02:45]} 5. exd4 {[%clk 0:02:49]}  b6 {[%clk 0:02:44]} 6. Nc3 {[%clk 0:02:45]}  Bb7 {[%clk 0:02:42]} 7. Be2 {[%clk 0:02:41]}  d6 {[%clk 0:02:42]} 8. O-O {[%clk 0:02:41]}  Be7 {[%clk 0:02:42]} 9. Re1 {[%clk 0:02:38]}  O-O {[%clk 0:02:42]} 10. h3 {[%clk 0:02:36]}  a6 {[%clk 0:02:42]} 11. Bd3 {[%clk 0:02:33]}  Nbd7 {[%clk 0:02:42]} 12. Ne4 {[%clk 0:02:33]}  Nxe4 {[%clk 0:02:36]} 13. Bxe4 {[%clk 0:02:34]}  Bxe4 {[%clk 0:02:37]} 14. Rxe4 {[%clk 0:02:35]}  Nf6 {[%clk 0:02:38]} 15. Re1 {[%clk 0:02:35]}  Qc7 {[%clk 0:02:37]} 16. c3 {[%clk 0:02:35]}  Rac8 {[%clk 0:02:36]} 17. Qd3 {[%clk 0:02:34]}  Qb7 {[%clk 0:02:37]} 18. Bg5 {[%clk 0:02:26]}  h6 {[%clk 0:02:33]} 19. Bh4 {[%clk 0:02:26]}  b5 {[%clk 0:02:32]} 20. a3 {[%clk 0:02:24]}  a5 {[%clk 0:02:30]} 21. Nd2 {[%clk 0:02:18]}  Rc7 {[%clk 0:02:26]} 22. Bxf6 {[%clk 0:02:13]}  Bxf6 {[%clk 0:02:26]} 23. Ne4 {[%clk 0:02:14]}  Be7 {[%clk 0:02:26]} 24. Re3 {[%clk 0:02:05]}  Qd5 {[%clk 0:02:10]} 25. Rg3 {[%clk 0:02:02]}  f5 {[%clk 0:02:09]} 26. Nd2 {[%clk 0:01:54]}  e5 {[%clk 0:02:09]} 27. Re1 {[%clk 0:01:33]}  e4 {[%clk 0:02:02]} 28. Qe2 {[%clk 0:01:33]}  Bh4 {[%clk 0:01:50]} 29. Rg6 {[%clk 0:01:29]}  Kh7 {[%clk 0:01:36]} 30. Qh5 {[%clk 0:01:22]}  Qf7 {[%clk 0:01:36]} 31. Qxh4 {[%clk 0:01:14]}  Qxg6 {[%clk 0:01:34]} 32. Qf4 {[%clk 0:01:07]}  Qg5 {[%clk 0:01:31]} 0-1


[Site "https://www.chess.com"]

[Event "Titled Tuesday Blitz August 22 Early 2023"]
[White "Li, Xueyi"]
[Black "Shuvalov, Evgenij"]
[WhiteFideId "8605912"]
[BlackFideId "4187237"]
[WhiteElo "2286"]
[BlackElo "2491"]
[Result "1-0"]
[Round "2"]
[TimeControl "180+1"]
[Date "2023.08.22"]
[WhiteClock "0:00:02"]
[BlackClock "0:00:00"]
[Board "207"]

1. d4 {[%clk 0:02:56]}  Nf6 {[%clk 0:02:59]} 2. c4 {[%clk 0:02:54]}  g6 {[%clk 0:02:59]} 3. g3 {[%clk 0:02:54]}  c6 {[%clk 0:02:58]} 4. Bg2 {[%clk 0:02:53]}  d5 {[%clk 0:02:59]} 5. Nf3 {[%clk 0:02:52]}  Bg7 {[%clk 0:02:59]} 6. O-O {[%clk 0:02:51]}  O-O {[%clk 0:02:59]} 7. Ne5 {[%clk 0:02:50]}  Ng4 {[%clk 0:02:51]} 8. Nf3 {[%clk 0:02:49]}  Nf6 {[%clk 0:02:47]} 9. a4 {[%clk 0:02:46]}  Bf5 {[%clk 0:02:43]} 10. a5 {[%clk 0:02:43]}  Na6 {[%clk 0:02:36]} 11. Ne5 {[%clk 0:02:41]}  Ng4 {[%clk 0:02:34]} 12. cxd5 {[%clk 0:02:35]}  cxd5 {[%clk 0:02:31]} 13. Nxg4 {[%clk 0:02:32]}  Bxg4 {[%clk 0:02:31]} 14. Nc3 {[%clk 0:02:32]}  Be6 {[%clk 0:02:12]} 15. Bf4 {[%clk 0:02:12]}  Qd7 {[%clk 0:02:02]} 16. Qd2 {[%clk 0:01:55]}  Rfc8 {[%clk 0:01:46]} 17. Bh6 {[%clk 0:01:52]}  Bxh6 {[%clk 0:01:39]} 18. Qxh6 {[%clk 0:01:51]}  Nb4 {[%clk 0:01:40]} 19. h4 {[%clk 0:01:49]}  Rc4 {[%clk 0:01:30]} 20. Rad1 {[%clk 0:01:45]}  Nc6 {[%clk 0:01:23]} 21. h5 {[%clk 0:01:25]}  Nxd4 {[%clk 0:01:13]} 22. hxg6 {[%clk 0:01:19]}  hxg6 {[%clk 0:01:12]} 23. e4 {[%clk 0:01:08]}  dxe4 {[%clk 0:00:51]} 24. Nxe4 {[%clk 0:01:04]}  Nf5 {[%clk 0:00:43]} 25. Rxd7 {[%clk 0:01:00]}  Nxh6 {[%clk 0:00:43]} 26. Rxb7 {[%clk 0:01:00]}  Kf8 {[%clk 0:00:36]} 27. Ng5 {[%clk 0:00:54]}  Bc8 {[%clk 0:00:20]} 28. Rxe7 {[%clk 0:00:48]}  Kxe7 {[%clk 0:00:19]} 29. Bxa8 {[%clk 0:00:46]}  Rb4 {[%clk 0:00:20]} 30. Re1+ {[%clk 0:00:45]}  Kf6 {[%clk 0:00:19]} 31. Ne4+ {[%clk 0:00:43]}  Kg7 {[%clk 0:00:19]} 32. Nd6 {[%clk 0:00:42]}  Ba6 {[%clk 0:00:18]} 33. Ne8+ {[%clk 0:00:31]}  Kf8 {[%clk 0:00:17]} 34. Nc7 {[%clk 0:00:27]}  Bc4 {[%clk 0:00:16]} 35. Re8+ {[%clk 0:00:23]}  Kg7 {[%clk 0:00:16]} 36. Bd5 {[%clk 0:00:23]}  Bxd5 {[%clk 0:00:14]} 37. Nxd5 {[%clk 0:00:23]}  Rxb2 {[%clk 0:00:15]} 38. Ne3 {[%clk 0:00:15]}  Ra2 {[%clk 0:00:12]} 39. Nc4 {[%clk 0:00:13]}  Ra4 {[%clk 0:00:12]} 40. Rc8 {[%clk 0:00:14]}  Ng4 {[%clk 0:00:11]} 41. Rc7 {[%clk 0:00:13]}  Kf8 {[%clk 0:00:09]} 42. Nd6 {[%clk 0:00:12]}  Rxa5 {[%clk 0:00:09]} 43. Rxf7+ {[%clk 0:00:12]}  Kg8 {[%clk 0:00:09]} 44. Rf4 {[%clk 0:00:12]}  Ne5 {[%clk 0:00:09]} 45. Ne8 {[%clk 0:00:11]}  Ra1+ {[%clk 0:00:06]} 46. Kg2 {[%clk 0:00:10]}  a5 {[%clk 0:00:07]} 47. Nf6+ {[%clk 0:00:08]}  Kg7 {[%clk 0:00:07]} 48. Ne8+ {[%clk 0:00:08]}  Kg8 {[%clk 0:00:07]} 49. Re4 {[%clk 0:00:07]}  Nd3 {[%clk 0:00:05]} 50. Rd4 {[%clk 0:00:07]}  Ne1+ {[%clk 0:00:05]} 51. Kh3 {[%clk 0:00:06]}  a4 {[%clk 0:00:05]} 52. g4 {[%clk 0:00:05]}  a3 {[%clk 0:00:05]} 53. Nf6+ {[%clk 0:00:04]}  Kf7 {[%clk 0:00:04]} 54. g5 {[%clk 0:00:03]}  a2 {[%clk 0:00:04]} 55. Ra4 {[%clk 0:00:03]}  Nd3 {[%clk 0:00:02]} 56. Ra7+ {[%clk 0:00:03]}  Ke6 {[%clk 0:00:01]} 57. Kg2 {[%clk 0:00:03]}  Nb4 {[%clk 0:00:00]} 58. Ra6+ {[%clk 0:00:02]} 1-0


[Site "https://www.chess.com"]

[Event "Titled Tuesday Blitz August 22 Early 2023"]
[White "Miszler, Levente"]
[Black "Simonovic, Miroslav"]
[WhiteFideId "763276"]
[BlackFideId "919152"]
[WhiteElo "2483"]
[BlackElo "2274"]
[Result "1-0"]
[Round "2"]
[TimeControl "180+1"]
[Date "2023.08.22"]
[WhiteClock "0:01:54"]
[BlackClock "0:00:05"]
[Board "211"]

1. Nf3 {[%clk 0:03:00]}  c5 {[%clk 0:02:58]} 2. c4 {[%clk 0:03:01]}  Nc6 {[%clk 0:02:58]} 3. g3 {[%clk 0:03:01]}  e5 {[%clk 0:02:57]} 4. Nc3 {[%clk 0:03:01]}  g6 {[%clk 0:02:58]} 5. Bg2 {[%clk 0:03:01]}  Bg7 {[%clk 0:02:59]} 6. O-O {[%clk 0:03:02]}  Nge7 {[%clk 0:02:59]} 7. Ne1 {[%clk 0:03:02]}  O-O {[%clk 0:03:00]} 8. Nc2 {[%clk 0:03:03]}  d6 {[%clk 0:02:59]} 9. Ne3 {[%clk 0:03:04]}  f5 {[%clk 0:03:00]} 10. Ned5 {[%clk 0:03:03]}  Be6 {[%clk 0:02:57]} 11. d3 {[%clk 0:03:03]}  Qd7 {[%clk 0:02:57]} 12. a3 {[%clk 0:03:04]}  Rab8 {[%clk 0:02:53]} 13. Rb1 {[%clk 0:03:02]}  a5 {[%clk 0:02:52]} 14. b4 {[%clk 0:02:59]}  axb4 {[%clk 0:02:51]} 15. axb4 {[%clk 0:03:00]}  b6 {[%clk 0:02:42]} 16. Qa4 {[%clk 0:02:55]}  Rfd8 {[%clk 0:02:28]} 17. Bg5 {[%clk 0:02:51]}  h6 {[%clk 0:02:18]} 18. Bxe7 {[%clk 0:02:31]}  Nxe7 {[%clk 0:02:18]} 19. Qxd7 {[%clk 0:02:31]}  Rxd7 {[%clk 0:02:18]} 20. bxc5 {[%clk 0:02:31]}  dxc5 {[%clk 0:02:04]} 21. Rxb6 {[%clk 0:02:27]}  Rxb6 {[%clk 0:02:00]} 22. Nxb6 {[%clk 0:02:28]}  Rd6 {[%clk 0:01:51]} 23. Nbd5 {[%clk 0:02:22]}  Nxd5 {[%clk 0:01:49]} 24. Bxd5 {[%clk 0:02:21]}  e4 {[%clk 0:01:42]} 25. Bxe6+ {[%clk 0:02:19]}  Rxe6 {[%clk 0:01:43]} 26. Nd5 {[%clk 0:02:19]}  exd3 {[%clk 0:01:39]} 27. exd3 {[%clk 0:02:20]}  g5 {[%clk 0:01:30]} 28. Rb1 {[%clk 0:02:17]}  Bd4 {[%clk 0:01:29]} 29. Kf1 {[%clk 0:02:16]}  Ra6 {[%clk 0:01:23]} 30. Ne7+ {[%clk 0:02:16]}  Kf7 {[%clk 0:01:14]} 31. Nxf5 {[%clk 0:02:17]}  Be5 {[%clk 0:00:52]} 32. Ne3 {[%clk 0:02:10]}  h5 {[%clk 0:00:44]} 33. Nd5 {[%clk 0:02:02]}  Ra2 {[%clk 0:00:37]} 34. Rb7+ {[%clk 0:01:58]}  Kg6 {[%clk 0:00:32]} 35. Rb6+ {[%clk 0:01:58]}  Kg7 {[%clk 0:00:27]} 36. Re6 {[%clk 0:01:56]}  Bd4 {[%clk 0:00:27]} 37. Ne3 {[%clk 0:01:57]}  Kf7 {[%clk 0:00:23]} 38. Re4 {[%clk 0:01:55]}  Rd2 {[%clk 0:00:15]} 39. Nf5 {[%clk 0:01:54]}  Rxd3 {[%clk 0:00:13]} 40. Nxd4 {[%clk 0:01:55]}  cxd4 {[%clk 0:00:12]} 41. Ke2 {[%clk 0:01:55]}  Ra3 {[%clk 0:00:06]} 42. Rxd4 {[%clk 0:01:55]}  g4 {[%clk 0:00:06]} 43. Rd3 {[%clk 0:01:54]}  Ra2+ {[%clk 0:00:06]} 44. Ke3 {[%clk 0:01:55]}  Kf6 {[%clk 0:00:07]} 45. Rc3 {[%clk 0:01:55]}  Ra6 {[%clk 0:00:03]} 46. c5 {[%clk 0:01:55]}  Rc6 {[%clk 0:00:03]} 47. Kf4 {[%clk 0:01:54]}  Kg6 {[%clk 0:00:02]} 48. Ke5 {[%clk 0:01:54]}  Kg5 {[%clk 0:00:03]} 49. Kd5 {[%clk 0:01:54]}  Rc8 {[%clk 0:00:04]} 50. c6 {[%clk 0:01:55]}  h4 {[%clk 0:00:04]} 51. c7 {[%clk 0:01:53]}  h3 {[%clk 0:00:03]} 52. Kd6 {[%clk 0:01:52]}  Kf5 {[%clk 0:00:03]} 53. Kd7 {[%clk 0:01:53]}  Rg8 {[%clk 0:00:03]} 54. c8=Q {[%clk 0:01:52]}  Rxc8 {[%clk 0:00:04]} 55. Kxc8 {[%clk 0:01:53]}  Ke4 {[%clk 0:00:05]} 56. Kd7 {[%clk 0:01:52]}  Kd4 {[%clk 0:00:04]} 57. Re3 {[%clk 0:01:52]}  Kd5 {[%clk 0:00:05]} 58. Ke7 {[%clk 0:01:52]}  Kd4 {[%clk 0:00:06]} 59. Kf6 {[%clk 0:01:53]}  Kd5 {[%clk 0:00:05]} 60. Kg5 {[%clk 0:01:54]} 1-0


[Site "https://www.chess.com"]

[Event "Titled Tuesday Blitz August 22 Early 2023"]
[White "Lacasa Diaz, Jose Antonio"]
[Black "Urbina Perez, Juan Antonio"]
[WhiteFideId "2203375"]
[BlackFideId "2217368"]
[WhiteElo "2268"]
[BlackElo "2483"]
[Result "1-0"]
[Round "2"]
[TimeControl "180+1"]
[Date "2023.08.22"]
[WhiteClock "0:00:51"]
[BlackClock "0:00:34"]
[Board "212"]

1. e4 {[%clk 0:03:00]}  e5 {[%clk 0:02:58]} 2. Nf3 {[%clk 0:03:00]}  Nc6 {[%clk 0:02:58]} 3. Bb5 {[%clk 0:02:57]}  a6 {[%clk 0:02:57]} 4. Ba4 {[%clk 0:02:57]}  Nge7 {[%clk 0:02:57]} 5. O-O {[%clk 0:02:55]}  g6 {[%clk 0:02:57]} 6. c4 {[%clk 0:02:53]}  Bg7 {[%clk 0:02:56]} 7. Nc3 {[%clk 0:02:54]}  O-O {[%clk 0:02:56]} 8. d3 {[%clk 0:02:49]}  d6 {[%clk 0:02:55]} 9. h3 {[%clk 0:02:45]}  Bd7 {[%clk 0:02:55]} 10. a3 {[%clk 0:02:42]}  b5 {[%clk 0:02:54]} 11. cxb5 {[%clk 0:02:40]}  Nd4 {[%clk 0:02:55]} 12. Nxd4 {[%clk 0:02:38]}  exd4 {[%clk 0:02:53]} 13. Ne2 {[%clk 0:02:38]}  axb5 {[%clk 0:02:53]} 14. Bb3 {[%clk 0:02:37]}  c5 {[%clk 0:02:52]} 15. Bg5 {[%clk 0:02:35]}  h6 {[%clk 0:02:51]} 16. Bxe7 {[%clk 0:02:34]}  Qxe7 {[%clk 0:02:51]} 17. Nf4 {[%clk 0:02:34]}  Kh7 {[%clk 0:02:46]} 18. Nd5 {[%clk 0:02:30]}  Qd8 {[%clk 0:02:47]} 19. Re1 {[%clk 0:02:24]}  Be6 {[%clk 0:02:47]} 20. Rc1 {[%clk 0:02:20]}  Rc8 {[%clk 0:02:43]} 21. Nf4 {[%clk 0:02:19]}  Bd7 {[%clk 0:02:39]} 22. Bd5 {[%clk 0:02:19]}  Be5 {[%clk 0:02:32]} 23. Ne2 {[%clk 0:02:18]}  Be6 {[%clk 0:02:30]} 24. f4 {[%clk 0:02:14]}  Bg7 {[%clk 0:02:28]} 25. Qb3 {[%clk 0:02:08]}  Bxd5 {[%clk 0:02:20]} 26. Qxd5 {[%clk 0:02:07]}  f5 {[%clk 0:02:20]} 27. exf5 {[%clk 0:02:02]}  Rxf5 {[%clk 0:02:19]} 28. Qb7 {[%clk 0:02:02]}  Rb8 {[%clk 0:02:02]} 29. Qf3 {[%clk 0:01:49]}  d5 {[%clk 0:01:57]} 30. Ng3 {[%clk 0:01:46]}  Rf7 {[%clk 0:01:56]} 31. f5 {[%clk 0:01:46]}  Qg5 {[%clk 0:01:45]} 32. Rxc5 {[%clk 0:01:40]}  gxf5 {[%clk 0:01:35]} 33. Rxd5 {[%clk 0:01:35]}  Qd2 {[%clk 0:01:32]} 34. Rf1 {[%clk 0:01:34]}  Rbf8 {[%clk 0:01:27]} 35. Nxf5 {[%clk 0:01:30]}  Qxb2 {[%clk 0:01:23]} 36. Qe4 {[%clk 0:01:24]}  Kh8 {[%clk 0:01:23]} 37. Rf3 {[%clk 0:01:19]}  Qc1+ {[%clk 0:01:21]} 38. Kh2 {[%clk 0:01:18]}  Qc7+ {[%clk 0:01:02]} 39. Rg3 {[%clk 0:01:16]}  Rd8 {[%clk 0:00:36]} 40. Rxd8+ {[%clk 0:01:06]}  Qxd8 {[%clk 0:00:37]} 41. Nxg7 {[%clk 0:01:06]}  Rxg7 {[%clk 0:00:38]} 42. Qe5 {[%clk 0:01:04]}  Qd7 {[%clk 0:00:35]} 43. Rxg7 {[%clk 0:00:51]}  Qxg7 {[%clk 0:00:36]} 44. Qxg7+ {[%clk 0:00:51]}  Kxg7 {[%clk 0:00:37]} 45. Kg3 {[%clk 0:00:51]}  Kf6 {[%clk 0:00:34]} 46. Kf4 {[%clk 0:00:51]} 1-0


[Site "https://www.chess.com"]

[Event "Titled Tuesday Blitz August 22 Early 2023"]
[White "Mrithyunjay Mahadevan"]
[Black "San Thit Lwin"]
[WhiteFideId "45003521"]
[BlackFideId "13001272"]
[WhiteElo "2480"]
[BlackElo "2266"]
[Result "1-0"]
[Round "2"]
[TimeControl "180+1"]
[Date "2023.08.22"]
[WhiteClock "0:01:19"]
[BlackClock "0:00:00"]
[Board "214"]

1. e4 {[%clk 0:02:59]}  Nf6 {[%clk 0:03:00]} 2. e5 {[%clk 0:02:59]}  Nd5 {[%clk 0:03:01]} 3. d4 {[%clk 0:02:58]}  d6 {[%clk 0:03:01]} 4. Nf3 {[%clk 0:02:58]}  g6 {[%clk 0:03:00]} 5. Be2 {[%clk 0:02:57]}  Bg7 {[%clk 0:03:00]} 6. O-O {[%clk 0:02:57]}  O-O {[%clk 0:03:01]} 7. exd6 {[%clk 0:02:54]}  cxd6 {[%clk 0:03:00]} 8. c4 {[%clk 0:02:55]}  Nf6 {[%clk 0:03:00]} 9. Nc3 {[%clk 0:02:54]}  Nc6 {[%clk 0:02:55]} 10. h3 {[%clk 0:02:53]}  Bf5 {[%clk 0:02:55]} 11. a3 {[%clk 0:02:50]}  a5 {[%clk 0:02:44]} 12. Be3 {[%clk 0:02:47]}  Rc8 {[%clk 0:02:43]} 13. d5 {[%clk 0:02:40]}  Nb8 {[%clk 0:02:41]} 14. Qb3 {[%clk 0:02:39]}  Nbd7 {[%clk 0:02:30]} 15. g4 {[%clk 0:02:27]}  Bxg4 {[%clk 0:02:29]} 16. hxg4 {[%clk 0:02:28]}  Nxg4 {[%clk 0:02:30]} 17. Nd4 {[%clk 0:02:17]}  Nxe3 {[%clk 0:02:25]} 18. fxe3 {[%clk 0:02:18]}  e5 {[%clk 0:02:18]} 19. Nf3 {[%clk 0:02:09]}  Nc5 {[%clk 0:02:13]} 20. Qc2 {[%clk 0:02:07]}  f5 {[%clk 0:01:24]} 21. b4 {[%clk 0:02:01]}  axb4 {[%clk 0:01:19]} 22. axb4 {[%clk 0:02:02]}  Na6 {[%clk 0:00:52]} 23. b5 {[%clk 0:02:02]}  Nc5 {[%clk 0:00:51]} 24. e4 {[%clk 0:02:00]}  fxe4 {[%clk 0:00:18]} 25. Nxe4 {[%clk 0:01:59]}  Nxe4 {[%clk 0:00:18]} 26. Qxe4 {[%clk 0:01:59]}  Rf4 {[%clk 0:00:18]} 27. Qe3 {[%clk 0:01:57]}  Qf6 {[%clk 0:00:17]} 28. Kh1 {[%clk 0:01:54]}  e4 {[%clk 0:00:15]} 29. Nh2 {[%clk 0:01:52]}  Rf8 {[%clk 0:00:13]} 30. Rae1 {[%clk 0:01:46]}  Qh4 {[%clk 0:00:11]} 31. Rxf4 {[%clk 0:01:38]}  Rxf4 {[%clk 0:00:09]} 32. Rf1 {[%clk 0:01:35]}  Be5 {[%clk 0:00:08]} 33. Rxf4 {[%clk 0:01:27]}  Bxf4 {[%clk 0:00:08]} 34. Qg1 {[%clk 0:01:27]}  e3 {[%clk 0:00:04]} 35. Qg2 {[%clk 0:01:25]}  g5 {[%clk 0:00:02]} 36. Kg1 {[%clk 0:01:24]}  Qe1+ {[%clk 0:00:01]} 37. Bf1 {[%clk 0:01:23]}  e2 {[%clk 0:00:01]} 38. Qxe2 {[%clk 0:01:22]}  Be3+ {[%clk 0:00:00]} 39. Kh1 {[%clk 0:01:21]}  Qg3 {[%clk 0:00:00]} 40. Nf3 {[%clk 0:01:19]} 1-0


[Site "https://www.chess.com"]

[Event "Titled Tuesday Blitz August 22 Early 2023"]
[White "Hoffmann, Asa"]
[Black "Khamdamova, Afruza"]
[WhiteFideId "2001470"]
[BlackFideId "14210444"]
[WhiteElo "2263"]
[BlackElo "2479"]
[Result "0-1"]
[Round "2"]
[TimeControl "180+1"]
[Date "2023.08.22"]
[WhiteClock "0:00:10"]
[BlackClock "0:00:15"]
[Board "215"]

1. d4 {[%clk 0:02:54]}  Nf6 {[%clk 0:02:59]} 2. Bg5 {[%clk 0:02:53]}  Ne4 {[%clk 0:02:59]} 3. Bf4 {[%clk 0:02:52]}  d5 {[%clk 0:02:58]} 4. f3 {[%clk 0:02:52]}  Nf6 {[%clk 0:02:53]} 5. e4 {[%clk 0:02:51]}  dxe4 {[%clk 0:02:49]} 6. Nc3 {[%clk 0:02:51]}  exf3 {[%clk 0:02:27]} 7. Nxf3 {[%clk 0:02:47]}  e6 {[%clk 0:02:27]} 8. Bc4 {[%clk 0:02:44]}  Bd6 {[%clk 0:02:27]} 9. Qd2 {[%clk 0:02:43]}  O-O {[%clk 0:02:23]} 10. O-O-O {[%clk 0:02:42]}  c6 {[%clk 0:02:17]} 11. Ne5 {[%clk 0:02:41]}  a5 {[%clk 0:02:13]} 12. Rhf1 {[%clk 0:02:28]}  Nd5 {[%clk 0:02:13]} 13. Nxd5 {[%clk 0:02:24]}  exd5 {[%clk 0:02:05]} 14. Bd3 {[%clk 0:02:24]}  Na6 {[%clk 0:01:53]} 15. a3 {[%clk 0:02:22]}  Be6 {[%clk 0:01:35]} 16. Rde1 {[%clk 0:02:20]}  Qe7 {[%clk 0:01:31]} 17. Nf3 {[%clk 0:02:03]}  b5 {[%clk 0:01:07]} 18. Ne5 {[%clk 0:01:54]}  Rfc8 {[%clk 0:01:00]} 19. Qf2 {[%clk 0:01:49]}  b4 {[%clk 0:00:51]} 20. a4 {[%clk 0:01:47]}  c5 {[%clk 0:00:51]} 21. dxc5 {[%clk 0:01:38]}  Nxc5 {[%clk 0:00:50]} 22. Bb5 {[%clk 0:01:37]}  Ne4 {[%clk 0:00:43]} 23. Qe3 {[%clk 0:01:19]}  Qc7 {[%clk 0:00:43]} 24. Nc6 {[%clk 0:01:11]}  Kh8 {[%clk 0:00:27]} 25. Bxd6 {[%clk 0:01:01]}  Qxd6 {[%clk 0:00:27]} 26. Nd4 {[%clk 0:00:57]}  Rc7 {[%clk 0:00:25]} 27. Re2 {[%clk 0:00:53]}  Rac8 {[%clk 0:00:24]} 28. Kb1 {[%clk 0:00:53]}  f6 {[%clk 0:00:19]} 29. Nxe6 {[%clk 0:00:49]}  Qxe6 {[%clk 0:00:19]} 30. Bd3 {[%clk 0:00:47]}  Re7 {[%clk 0:00:17]} 31. Rfe1 {[%clk 0:00:44]}  Rce8 {[%clk 0:00:18]} 32. Bxe4 {[%clk 0:00:41]}  dxe4 {[%clk 0:00:18]} 33. Qc5 {[%clk 0:00:39]}  Qe5 {[%clk 0:00:18]} 34. Qxe5 {[%clk 0:00:36]}  Rxe5 {[%clk 0:00:18]} 35. g3 {[%clk 0:00:36]}  f5 {[%clk 0:00:18]} 36. Kc1 {[%clk 0:00:35]}  g5 {[%clk 0:00:18]} 37. h4 {[%clk 0:00:34]}  gxh4 {[%clk 0:00:18]} 38. gxh4 {[%clk 0:00:33]}  f4 {[%clk 0:00:19]} 39. Rf1 {[%clk 0:00:33]}  f3 {[%clk 0:00:18]} 40. Re3 {[%clk 0:00:31]}  Kg7 {[%clk 0:00:14]} 41. Kd2 {[%clk 0:00:31]}  Kf6 {[%clk 0:00:14]} 42. Ke1 {[%clk 0:00:31]}  Kf5 {[%clk 0:00:15]} 43. Kf2 {[%clk 0:00:30]}  Kf4 {[%clk 0:00:15]} 44. Rg1 {[%clk 0:00:28]}  Rd8 {[%clk 0:00:15]} 45. Rge1 {[%clk 0:00:22]}  Rd2+ {[%clk 0:00:15]} 46. Kf1 {[%clk 0:00:10]}  Rxc2 {[%clk 0:00:15]} 0-1


[Site "https://www.chess.com"]

[Event "Titled Tuesday Blitz August 22 Early 2023"]
[White "Fernandez Lopez, Ruben"]
[Black "Kaminski, Victor"]
[WhiteFideId "24518298"]
[BlackFideId "1131630"]
[WhiteElo "2478"]
[BlackElo "2258"]
[Result "1-0"]
[Round "2"]
[TimeControl "180+1"]
[Date "2023.08.22"]
[WhiteClock "0:01:35"]
[BlackClock "0:00:00"]
[Board "216"]

1. b3 {[%clk 0:03:00]}  d5 {[%clk 0:02:55]} 2. Bb2 {[%clk 0:03:00]}  Bf5 {[%clk 0:02:54]} 3. e3 {[%clk 0:03:00]}  Nc6 {[%clk 0:02:54]} 4. c4 {[%clk 0:03:00]}  Nb4 {[%clk 0:02:47]} 5. Na3 {[%clk 0:02:58]}  Nd3+ {[%clk 0:02:43]} 6. Bxd3 {[%clk 0:02:56]}  Bxd3 {[%clk 0:02:44]} 7. Qf3 {[%clk 0:02:56]}  e6 {[%clk 0:02:36]} 8. Ne2 {[%clk 0:02:55]}  Nf6 {[%clk 0:02:35]} 9. Nf4 {[%clk 0:02:56]}  Be4 {[%clk 0:02:34]} 10. Qg3 {[%clk 0:02:55]}  h5 {[%clk 0:02:31]} 11. h4 {[%clk 0:02:52]}  c6 {[%clk 0:02:17]} 12. d3 {[%clk 0:02:47]}  Bf5 {[%clk 0:02:16]} 13. O-O {[%clk 0:02:45]}  Qa5 {[%clk 0:02:06]} 14. Nc2 {[%clk 0:02:44]}  Qd2 {[%clk 0:02:05]} 15. Rac1 {[%clk 0:02:43]}  O-O-O {[%clk 0:01:50]} 16. b4 {[%clk 0:02:43]}  dxc4 {[%clk 0:01:48]} 17. Rfd1 {[%clk 0:02:43]}  Ne4 {[%clk 0:01:17]} 18. Rxd2 {[%clk 0:02:13]}  Nxg3 {[%clk 0:01:13]} 19. fxg3 {[%clk 0:02:14]}  cxd3 {[%clk 0:01:12]} 20. Nd4 {[%clk 0:02:14]}  Bxb4 {[%clk 0:01:11]} 21. Rdd1 {[%clk 0:02:14]}  d2 {[%clk 0:01:09]} 22. Rc4 {[%clk 0:02:13]}  Bg4 {[%clk 0:01:09]} 23. Nfe2 {[%clk 0:02:08]}  e5 {[%clk 0:00:51]} 24. Nf3 {[%clk 0:02:03]}  Ba5 {[%clk 0:00:40]} 25. Bxe5 {[%clk 0:02:02]}  Rhe8 {[%clk 0:00:36]} 26. Bd4 {[%clk 0:02:01]}  Kb8 {[%clk 0:00:31]} 27. Kf2 {[%clk 0:02:01]}  b6 {[%clk 0:00:24]} 28. Rxc6 {[%clk 0:02:00]}  Kb7 {[%clk 0:00:21]} 29. Rc2 {[%clk 0:01:58]}  Rc8 {[%clk 0:00:19]} 30. Rxc8 {[%clk 0:01:55]}  Rxc8 {[%clk 0:00:19]} 31. Bxg7 {[%clk 0:01:47]}  Rc2 {[%clk 0:00:19]} 32. a4 {[%clk 0:01:44]}  Ra2 {[%clk 0:00:13]} 33. Bc3 {[%clk 0:01:41]}  Rxa4 {[%clk 0:00:09]} 34. Rxd2 {[%clk 0:01:40]}  Bxc3 {[%clk 0:00:06]} 35. Nxc3 {[%clk 0:01:41]}  Rc4 {[%clk 0:00:06]} 36. Nb5 {[%clk 0:01:40]}  Rc5 {[%clk 0:00:05]} 37. Nd6+ {[%clk 0:01:40]}  Kc6 {[%clk 0:00:05]} 38. Nxf7 {[%clk 0:01:41]}  a5 {[%clk 0:00:05]} 39. N7e5+ {[%clk 0:01:41]}  Kb7 {[%clk 0:00:04]} 40. Nxg4 {[%clk 0:01:41]}  hxg4 {[%clk 0:00:05]} 41. Nd4 {[%clk 0:01:42]}  a4 {[%clk 0:00:05]} 42. Ra2 {[%clk 0:01:37]}  Ra5 {[%clk 0:00:05]} 43. h5 {[%clk 0:01:36]}  Rxh5 {[%clk 0:00:04]} 44. Rxa4 {[%clk 0:01:36]}  b5 {[%clk 0:00:04]} 45. Rb4 {[%clk 0:01:34]}  Ka6 {[%clk 0:00:03]} 46. e4 {[%clk 0:01:33]}  Rc5 {[%clk 0:00:03]} 47. Rxb5 {[%clk 0:01:32]}  Rxb5 {[%clk 0:00:03]} 48. Nxb5 {[%clk 0:01:33]}  Kxb5 {[%clk 0:00:03]} 49. Ke3 {[%clk 0:01:34]}  Kc4 {[%clk 0:00:04]} 50. Kf4 {[%clk 0:01:34]}  Kd4 {[%clk 0:00:05]} 51. e5 {[%clk 0:01:35]}  Kd5 {[%clk 0:00:00]} 52. Kf5 {[%clk 0:01:35]} 1-0


[Site "https://www.chess.com"]